bitfinex/quotes_SOLUSD_20250528
["timestamp","ask_amount","ask_price","bid_price","bid_amount"]
[1748458021485,23.10981101,170.75,170.72,26.0]
[1748458022019,20.49660341,170.76,170.72,49.10981101]
[1748458022827,43.60641442,170.76,170.72,49.10981101]
[1748458023224,23.10981101,170.75,170.72,26.0]
[1748458023429,23.10981101,170.73,170.69,32.24981101]
[1748458023725,23.10981101,170.73,170.69,9.14]
[1748458023922,23.10981101,170.73,170.69,44.72]
[1748458024139,23.10981101,170.73,170.69,70.72]
[1748458025145,28.96735552,170.72,170.69,26.0]
[1748458025443,23.10981101,170.71,170.68,35.58]
[1748458025641,118.46735552,170.72,170.68,26.0]
[1748458028126,23.10981101,170.7,170.67,35.58]
[1748458029254,5.85857402,170.69,170.67,35.58]
[1748458030533,5.85857402,170.69,170.66,49.10981101]
[1748458031249,5.85857402,170.69,170.66,84.68981101]
[1748458031860,5.85857402,170.69,170.66,61.58]
[1748458032161,5.85857402,170.69,170.66,35.58]
[1748458032531,28.96838503,170.69,170.66,35.58]
[1748458032789,23.10981101,170.68,170.64,9.14]
[1748458032940,20.50500907,170.69,170.62,35.86943333]
[1748458032941,23.10981101,170.65,170.62,8.33333333]
[1748458033146,23.10981101,170.63,170.62,8.33333333]
[1748458033548,28.97044513,170.63,170.62,8.33333333]
[1748458037372,29.1126067,170.63,170.62,8.33333333]
[1748458040652,47.90441713,170.63,170.62,8.33333333]
[1748458041660,5.86063412,170.63,170.62,8.33333333]
[1748458042353,29.1126067,170.63,170.62,8.33333333]
[1748458042765,47.90441713,170.63,170.62,8.33333333]
[1748458043182,29.1126067,170.63,170.62,8.33333333]
[1748458043350,28.97044513,170.63,170.62,8.33333333]
[1748458043555,5.86063412,170.63,170.62,8.33333333]
[1748458043952,28.97044513,170.63,170.62,8.33333333]
[1748458044169,5.86063412,170.63,170.62,8.33333333]
[1748458044477,23.10981101,170.65,170.62,8.33333333]
[1748458044993,23.10981101,170.63,170.62,8.33333333]
[1748458045349,5.86029067,170.64,170.62,8.33333333]
[1748458045350,28.97010168,170.64,170.62,8.33333333]
[1748458045753,5.86029067,170.64,170.62,8.33333333]
[1748458046261,28.97010168,170.64,170.62,8.33333333]
[1748458051875,5.86029067,170.64,170.62,8.33333333]
[1748458053067,28.97010168,170.64,170.62,8.33333333]
[1748458055283,23.10981101,170.63,170.62,8.33333333]
[1748458056970,5.86063412,170.63,170.62,8.33333333]
[1748458057285,23.10981101,170.64,170.62,8.33333333]
[1748458057286,5.86036831,170.64,170.62,8.33333333]
[1748458057496,5.85970857,170.66,170.63,23.10981101]
[1748458058764,5.85970857,170.66,170.62,67.04314434]
[1748458060874,5.85970857,170.66,170.63,23.10981101]
[1748458066677,5.85970857,170.66,170.62,43.93333333]
[1748458066881,5.85970857,170.66,170.63,23.10981101]
[1748458067502,28.96951958,170.66,170.62,43.93333333]
[1748458068995,43.6185293,170.66,170.62,43.93333333]
[1748458069189,43.6185293,170.66,170.62,8.33333333]
[1748458069496,23.10981101,170.63,170.62,8.33333333]
[1748458070585,0.14216157,170.65,170.62,8.33333333]
[1748458070894,23.10981101,170.64,170.62,8.33333333]
[1748458071279,23.10981101,170.63,170.62,8.33333333]
[1748458073594,28.97044513,170.63,170.62,8.33333333]
[1748458074377,5.86063412,170.63,170.62,8.33333333]
[1748458075510,28.97044513,170.63,170.62,8.33333333]
[1748458075799,23.10981101,170.64,170.62,8.33333333]
[1748458076696,23.10981101,170.63,170.62,8.33333333]
[1748458077402,23.25197258,170.63,170.62,8.33333333]
[1748458077584,29.1126067,170.63,170.62,8.33333333]
[1748458079497,47.90441713,170.63,170.62,8.33333333]
[1748458080084,5.86063412,170.63,170.62,8.33333333]
[1748458080284,28.97044513,170.63,170.62,8.33333333]
[1748458081308,43.62203043,170.63,170.56,35.6]
[1748458081607,23.10981101,170.59,170.56,35.6]
[1748458081817,5.86235197,170.58,170.56,35.6]
[1748458082128,28.97216298,170.58,170.56,35.6]
[1748458082787,28.97216298,170.58,170.55,26.0]
[1748458082988,23.10981101,170.57,170.55,61.6]
[1748458083803,5.86235197,170.58,170.55,84.70981101]
[1748458084311,5.86235197,170.58,170.56,23.10981101]
[1748458084514,5.86235197,170.58,170.55,84.70981101]
[1748458084893,28.97216298,170.58,170.55,61.6]
[1748458087493,28.97216298,170.58,170.55,26.0]
[1748458087688,28.97216298,170.58,170.55,61.6]
[1748458087884,23.10981101,170.57,170.55,61.6]
[1748458088329,23.10981101,170.56,170.53,61.6]
[1748458088633,23.10981101,170.54,170.52,8.33333333]
[1748458088792,23.10981101,170.53,170.52,8.33333333]
[1748458089797,23.10981101,170.54,170.52,8.33333333]
[1748458089997,23.10981101,170.55,170.52,8.33333333]
[1748458090608,5.86303939,170.56,170.52,31.44314434]
[1748458090792,5.86303939,170.56,170.53,35.62]
[1748458091000,5.86303939,170.56,170.53,58.72981101]
[1748458091327,95.36280748,170.57,170.54,23.10981101]
[1748458091814,95.36196329,170.6,170.56,23.10981101]
[1748458092013,118.4717743,170.6,170.56,35.62]
[1748458094298,95.36196329,170.6,170.56,35.62]
[1748458099506,95.36196329,170.6,170.56,58.72981101]
[1748458100815,95.36196329,170.6,170.57,23.10981101]
[1748458101830,95.36196329,170.6,170.58,58.72981101]
[1748458104926,5.86097761,170.62,170.59,23.10981101]
[1748458105132,5.86097761,170.62,170.56,26.0]
[1748458105133,5.86097761,170.62,170.6,58.72981101]
[1748458106932,5.86070579,170.63,170.61,23.10981101]
[1748458107828,89.5,170.66,170.62,23.10981101]
[1748458108018,5.85974038,170.66,170.64,23.10981101]
[1748458108221,5.85974038,170.66,170.64,58.70981101]
[1748458108525,5.85974038,170.66,170.64,35.6]
[1748458114122,23.10981101,170.65,170.62,35.6]
[1748458114316,23.10981101,170.64,170.6,26.0]
[1748458114625,23.10981101,170.64,170.6,61.6]
[1748458114823,23.10981101,170.65,170.6,84.70981101]
[1748458115022,43.61856111,170.66,170.61,23.10981101]
[1748458115420,20.5087501,170.66,170.62,58.70981101]
[1748458115940,5.85974038,170.66,170.64,23.10981101]
[1748458116125,5.85974038,170.66,170.64,58.70981101]
[1748458119015,5.85974038,170.66,170.64,35.6]
[1748458119616,28.96955139,170.66,170.64,35.6]
[1748458119839,43.61856111,170.66,170.63,35.6]
[1748458121965,43.61856111,170.66,170.6,26.0]
[1748458121966,23.10981101,170.65,170.61,35.6]
[1748458122146,43.61856111,170.66,170.62,23.10981101]
[1748458127219,43.61856111,170.66,170.61,35.6]
[1748458127429,23.10981101,170.65,170.61,35.6]
[1748458127626,23.10981101,170.63,170.59,23.10981101]
[1748458127843,23.10981101,170.62,170.6,35.6]
[1748458128054,23.10981101,170.62,170.59,35.6]
[1748458128242,23.10981101,170.63,170.59,35.6]
[1748458129153,5.86097761,170.62,170.59,35.6]
[1748458129651,5.86097761,170.62,170.59,58.70981101]
[1748458131248,5.86097761,170.62,170.59,35.6]
[1748458131448,5.86097761,170.62,170.6,35.6]
[1748458132562,5.86097761,170.62,170.59,26.0]
[1748458132563,20.51342163,170.62,170.59,26.0]
[1748458132742,133.12323264,170.62,170.59,35.6]
[1748458132943,23.10981101,170.6,170.53,1.5934]
[1748458133133,23.10981101,170.58,170.54,35.6]
[1748458133334,23.10981101,170.57,170.55,35.6]
[1748458134080,23.10981101,170.58,170.53,49.10981101]
[1748458134249,23.10981101,170.58,170.53,84.70981101]
[1748458134759,5.86269566,170.57,170.53,84.70981101]
[1748458135143,5.86269566,170.57,170.55,23.10981101]
[1748458135358,5.86200832,170.59,170.56,23.10981101]
[1748458135763,5.86200832,170.59,170.57,23.10981101]
[1748458137368,5.86166471,170.6,170.57,23.10981101]
[1748458138749,5.86132114,170.61,170.57,23.10981101]
[1748458141457,28.97113215,170.61,170.56,84.70981101]
[1748458141881,23.10981101,170.6,170.56,84.70981101]
[1748458142063,23.10981101,170.6,170.56,35.6]
[1748458143470,5.86200832,170.59,170.56,35.6]
[1748458143894,23.10981101,170.58,170.56,35.6]
[1748458144195,23.10981101,170.58,170.53,58.70981101]
[1748458144347,112.60981101,170.58,170.53,23.10981101]
[1748458146455,5.86269566,170.57,170.53,23.10981101]
[1748458149152,23.10981101,170.56,170.52,70.74]
[1748458149383,23.10981101,170.55,170.52,9.14]
[1748458149574,23.10981101,170.55,170.51,93.04314434]
[1748458150287,23.10981101,170.53,170.51,8.33333333]
[1748458150654,23.10981101,170.52,170.51,8.33333333]
[1748458151092,28.97422574,170.52,170.51,8.33333333]
[1748458154991,5.86441473,170.52,170.51,8.33333333]
[1748458155568,148.5,170.62,170.54,26.0]
[1748458155769,23.10981101,170.6,170.55,23.10981101]
[1748458156082,23.10981101,170.58,170.54,61.62]
[1748458156283,23.10981101,170.57,170.54,61.62]
[1748458156662,23.10981101,170.57,170.54,35.62]
[1748458157171,28.97273098,170.57,170.54,35.62]
[1748458157370,5.86202103,170.59,170.55,23.10981101]
[1748458157596,5.86175277,170.6,170.56,23.10981101]
[1748458158084,5.86175277,170.6,170.57,35.62]
[1748458161979,5.86175277,170.6,170.57,58.72981101]
[1748458162775,28.97156378,170.6,170.57,35.62]
[1748458162966,23.10981101,170.59,170.57,35.62]
[1748458163904,23.10981101,170.58,170.53,35.62]
[1748458164064,23.10981101,170.56,170.51,31.44314434]
[1748458164263,23.10981101,170.56,170.51,67.06314434]
[1748458164581,23.10981101,170.56,170.51,43.95333333]
[1748458164582,5.86338317,170.55,170.51,43.95333333]
[1748458164786,5.86338317,170.55,170.51,67.06314434]
[1748458165290,5.86338317,170.55,170.52,23.10981101]
[1748458165897,5.86338317,170.55,170.52,58.72981101]
[1748458166689,5.86338317,170.55,170.52,35.62]
[1748458171069,5.86338317,170.55,170.53,23.10981101]
[1748458171395,5.86338317,170.55,170.54,23.10981101]
[1748458171563,5.86235197,170.58,170.54,23.10981101]
[1748458171768,6.14667511,170.58,170.54,23.10981101]
[1748458172193,6.14667511,170.58,170.55,23.10981101]
[1748458172704,5.86235197,170.58,170.56,23.10981101]
[1748458173185,5.86235197,170.58,170.55,23.10981101]
[1748458175608,5.86235197,170.58,170.54,23.10981101]
[1748458176409,5.86235197,170.58,170.55,23.10981101]
[1748458179173,5.86235197,170.58,170.54,23.10981101]
[1748458179399,20.5182319,170.58,170.54,23.10981101]
[1748458179593,0.28432314,170.57,170.53,26.0]
[1748458179775,23.10981101,170.56,170.52,35.62]
[1748458180889,5.86338317,170.55,170.52,35.62]
[1748458181695,5.86338317,170.55,170.51,67.06314434]
[1748458182306,5.86338317,170.55,170.51,31.44314434]
[1748458182602,5.86338317,170.55,170.51,67.06314434]
[1748458183184,23.10981101,170.54,170.51,8.33333333]
[1748458183508,23.39413415,170.52,170.51,8.33333333]
[1748458185994,29.25854888,170.52,170.51,8.33333333]
[1748458188909,5.86441473,170.52,170.51,8.33333333]
[1748458189704,28.97422574,170.52,170.51,8.33333333]
[1748458192292,29.25854888,170.52,170.51,8.33333333]
[1748458193603,29.25854888,170.52,170.47,67.86981101]
[1748458193905,29.25854888,170.52,170.47,44.76]
[1748458194211,29.25854888,170.52,170.47,67.86981101]
[1748458195610,43.9195857,170.52,170.47,67.86981101]
[1748458196810,23.10981101,170.51,170.47,9.14]
[1748458197005,23.10981101,170.51,170.47,44.76]
[1748458197320,23.10981101,170.48,170.43,1.5263]
[1748458197617,23.10981101,170.45,170.42,8.33333333]
[1748458197784,23.10981101,170.44,170.42,8.33333333]
[1748458197985,23.10981101,170.43,170.42,8.33333333]
[1748458198397,23.25197258,170.43,170.42,8.33333333]
[1748458198783,29.11948416,170.43,170.42,8.33333333]
[1748458199287,29.26164573,170.43,170.42,8.33333333]
[1748458200293,29.11948416,170.43,170.42,8.33333333]
[1748458200700,5.86751158,170.43,170.42,8.33333333]
[1748458201311,5.86721296,170.44,170.42,8.33333333]
[1748458201607,23.10981101,170.46,170.42,8.33333333]
[1748458201809,28.97653976,170.46,170.42,31.44314434]
[1748458202407,95.36618454,170.47,170.42,67.30314434]
[1748458202608,95.36618454,170.47,170.44,23.10981101]
[1748458203117,5.86510263,170.5,170.46,23.10981101]
[1748458203301,5.86510263,170.5,170.46,58.98981101]
[1748458204392,5.86510263,170.5,170.47,23.10981101]
[1748458204591,5.86510263,170.5,170.46,35.88]
[1748458204592,9.16,170.51,170.49,23.10981101]
[1748458204802,5.86441473,170.52,170.48,23.10981101]
[1748458204994,23.25197258,170.51,170.46,35.88]
[1748458205193,28.97491364,170.5,170.46,35.88]
[1748458205415,28.97491364,170.5,170.46,58.98981101]
[1748458205601,5.86510263,170.5,170.46,58.98981101]
[1748458206097,5.86510263,170.5,170.47,23.10981101]
[1748458209103,5.86510263,170.5,170.48,23.10981101]
[1748458209298,5.86483557,170.51,170.49,23.10981101]
[1748458210023,5.86483557,170.51,170.48,23.10981101]
[1748458210712,6.0065763,170.52,170.48,23.10981101]
[1748458213009,5.86441473,170.52,170.51,23.10981101]
[1748458213207,89.5,170.53,170.51,23.10981101]
[1748458213409,5.86399434,170.54,170.52,23.10981101]
[1748458213718,5.86399434,170.54,170.53,23.10981101]
[1748458214509,95.36347517,170.55,170.53,23.10981101]
[1748458214700,89.5,170.55,170.54,23.10981101]
[1748458215711,95.36338317,170.55,170.54,23.10981101]
[1748458216620,5.86338317,170.55,170.54,23.10981101]
[1748458216820,6.00451354,170.58,170.54,23.10981101]
[1748458217130,29.11432455,170.58,170.54,23.10981101]
[1748458217728,28.97216298,170.58,170.53,58.94981101]
[1748458218313,43.62804291,170.58,170.53,58.94981101]
[1748458218508,23.10981101,170.54,170.5,49.10981101]
[1748458218830,23.10981101,170.54,170.5,84.94981101]
[1748458219229,23.10981101,170.54,170.5,61.84]
[1748458219618,23.10981101,170.54,170.5,84.94981101]
[1748458219821,0.14216157,170.54,170.5,84.94981101]
[1748458220209,0.14216157,170.54,170.51,23.10981101]
[1748458221112,110.02063788,170.56,170.52,23.10981101]
[1748458222115,95.36303939,170.56,170.53,23.10981101]
[1748458223635,95.36303939,170.56,170.55,23.10981101]
[1748458223825,5.86303939,170.56,170.55,23.10981101]
[1748458224022,5.86200832,170.59,170.55,23.10981101]
[1748458224328,43.62684014,170.59,170.55,23.10981101]
[1748458226106,5.86269566,170.57,170.54,23.10981101]
[1748458227221,0.14216157,170.58,170.54,23.10981101]
[1748458228420,89.64216157,170.58,170.54,23.10981101]
[1748458228732,4.62519388,170.57,170.54,23.10981101]
[1748458228923,4.62519388,170.57,170.55,23.10981101]
[1748458229329,19.28193304,170.57,170.53,35.82]
[1748458229519,19.28193304,170.57,170.53,58.92981101]
[1748458230830,19.28193304,170.57,170.53,23.10981101]
[1748458235829,19.28193304,170.57,170.53,58.86981101]
[1748458236722,19.28193304,170.57,170.5,26.0]
[1748458236723,23.10981101,170.54,170.5,26.0]
[1748458236923,23.10981101,170.53,170.47,9.28]
[1748458237119,23.10981101,170.53,170.48,58.86981101]
[1748458237415,23.25197258,170.54,170.49,23.10981101]
[1748458237628,23.25197258,170.54,170.5,23.10981101]
[1748458237832,5.86407083,170.53,170.5,23.10981101]
[1748458240737,5.86407083,170.53,170.49,58.86981101]
[1748458244237,5.86407083,170.53,170.51,23.10981101]
[1748458245847,20.52304444,170.54,170.47,9.28]
[1748458246148,23.10981101,170.53,170.49,23.10981101]
[1748458246345,23.10981101,170.52,170.48,49.10981101]
[1748458247958,5.86510263,170.5,170.46,23.10981101]
[1748458248456,20.52785922,170.5,170.46,23.10981101]
[1748458250431,20.52785922,170.5,170.47,23.10981101]
[1748458251234,5.86510263,170.5,170.49,23.10981101]
[1748458252170,5.86510263,170.5,170.48,58.82981101]
[1748458252332,43.63470976,170.53,170.49,23.10981101]
[1748458254252,43.63470976,170.53,170.48,35.72]
[1748458254253,23.10981101,170.51,170.48,35.72]
[1748458254427,0.14216157,170.52,170.44,1.6031]
[1748458254428,23.10981101,170.5,170.44,1.6031]
[1748458254631,23.10981101,170.49,170.44,23.10981101]
[1748458254839,23.10981101,170.48,170.44,23.10981101]
[1748458255144,23.10981101,170.48,170.43,58.92981101]
[1748458255350,23.10981101,170.48,170.44,23.10981101]
[1748458255652,91.0936,170.51,170.46,23.10981101]
[1748458255833,0.14216157,170.5,170.47,23.10981101]
[1748458256040,5.86544665,170.49,170.46,23.10981101]
[1748458259969,5.86544665,170.49,170.48,23.10981101]
[1748458262040,20.52785922,170.5,170.47,23.10981101]
[1748458262864,43.63767023,170.5,170.45,23.10981101]
[1748458263035,0.14216157,170.49,170.45,23.10981101]
[1748458264266,5.8657907,170.48,170.45,23.10981101]
[1748458264457,5.8657907,170.48,170.46,23.10981101]
[1748458265443,20.53026747,170.48,170.45,23.10981101]
[1748458266361,14.66447677,170.48,170.44,58.94981101]
[1748458267564,14.66447677,170.48,170.45,23.10981101]
[1748458268456,5.8657907,170.48,170.47,23.10981101]
[1748458268644,5.8657907,170.48,170.46,23.10981101]
[1748458268959,5.8657907,170.48,170.47,35.82]
[1748458270352,43.64007848,170.48,170.45,35.84]
[1748458270968,20.53026747,170.48,170.45,35.84]
[1748458272941,20.53026747,170.48,170.44,23.10981101]
[1748458273641,20.53026747,170.48,170.43,35.84]
[1748458273844,20.53026747,170.48,170.44,23.10981101]
[1748458274659,23.10981101,170.47,170.42,32.32981101]
[1748458274869,5.86647893,170.46,170.43,35.84]
[1748458275354,5.86647893,170.46,170.43,58.94981101]
[1748458276699,5.86647893,170.46,170.43,35.84]
[1748458276859,6.00829637,170.47,170.43,58.94981101]
[1748458277754,20.67363337,170.47,170.43,58.94981101]
[1748458278671,23.10981101,170.45,170.42,35.8]
[1748458278868,5.86716733,170.44,170.42,26.0]
[1748458279257,43.64489666,170.44,170.39,23.10981101]
[1748458279460,43.64489666,170.44,170.39,84.92981101]
[1748458279665,23.10981101,170.43,170.39,84.92981101]
[1748458280359,43.64489666,170.44,170.39,84.92981101]
[1748458280975,20.53508565,170.44,170.4,23.10981101]
[1748458281180,5.86716733,170.44,170.43,23.10981101]
[1748458281763,5.86690697,170.45,170.43,23.10981101]
[1748458283252,89.5,170.46,170.42,35.82]
[1748458283253,89.5,170.46,170.44,23.10981101]
[1748458283448,5.86551626,170.49,170.45,84.92981101]
[1748458283665,5.86441473,170.52,170.48,23.10981101]
[1748458283865,5.86441473,170.52,170.49,23.10981101]
[1748458285583,5.86441473,170.52,170.48,58.92981101]
[1748458285953,5.86441473,170.52,170.49,23.10981101]
[1748458286156,5.86441473,170.52,170.5,23.10981101]
[1748458286659,5.86441473,170.52,170.49,23.10981101]
[1748458289568,5.86441473,170.52,170.5,23.10981101]
[1748458289974,5.86441473,170.52,170.49,23.10981101]
[1748458290178,5.86441473,170.52,170.48,58.92981101]
[1748458291189,5.86441473,170.52,170.38,16.63220451]
[1748458291190,20.80977469,170.52,170.38,16.63220451]
[1748458291490,23.10981101,170.48,170.44,49.10981101]
[1748458291986,23.10981101,170.49,170.44,49.10981101]
[1748458293188,5.8657907,170.48,170.45,23.10981101]
[1748458293562,5.8657907,170.48,170.44,26.0]
[1748458293765,5.8657907,170.48,170.45,23.10981101]
[1748458295367,5.8657907,170.48,170.44,49.10981101]
[1748458296698,5.8657907,170.48,170.44,84.88981101]
[1748458296988,5.8657907,170.48,170.45,23.10981101]
[1748458297574,5.8657907,170.48,170.44,84.88981101]
[1748458298370,43.64007848,170.48,170.44,61.78]
[1748458299366,23.10981101,170.45,170.39,9.28]
[1748458299687,23.10981101,170.44,170.4,84.92981101]
[1748458300088,23.10981101,170.46,170.41,23.10981101]
[1748458300387,89.5,170.47,170.44,23.10981101]
[1748458300561,5.86647893,170.46,170.44,23.10981101]
[1748458301717,5.556922,170.46,170.44,23.10981101]
[1748458303384,5.556922,170.46,170.43,58.92981101]
[1748458303599,5.556922,170.46,170.44,23.10981101]
[1748458304189,95.36615193,170.47,170.45,23.10981101]
[1748458305297,5.86615193,170.47,170.45,23.10981101]
[1748458306200,5.86544665,170.49,170.45,23.10981101]
[1748458306790,0.28432314,170.48,170.44,23.10981101]
[1748458307579,23.39413415,170.48,170.43,58.92981101]
[1748458307787,23.39413415,170.48,170.43,35.82]
[1748458307995,20.5314718,170.47,170.43,35.82]
[1748458308681,0.28432314,170.43,170.36,23.10981101]
[1748458308894,23.10981101,170.4,170.35,23.10981101]
[1748458309087,23.10981101,170.39,170.35,35.84]
[1748458309309,23.10981101,170.39,170.34,9.26]
[1748458309490,23.10981101,170.39,170.35,35.84]
[1748458309682,23.10981101,170.4,170.35,58.94981101]
[1748458309887,23.10981101,170.41,170.35,35.84]
[1748458310089,5.8685446,170.4,170.36,23.10981101]
[1748458311084,28.97835561,170.4,170.35,85.04981101]
[1748458312295,0.28432314,170.39,170.35,85.04981101]
[1748458313682,6.15321215,170.39,170.35,59.04981101]
[1748458314242,6.15321215,170.39,170.35,23.10981101]
[1748458314508,29.26302316,170.39,170.34,68.32981101]
[1748458314890,6.15321215,170.39,170.35,23.10981101]
[1748458315088,29.26302316,170.39,170.35,23.10981101]
[1748458316514,29.26302316,170.39,170.34,23.10981101]
[1748458316732,29.26302316,170.39,170.34,35.96]
[1748458317013,29.26302316,170.39,170.34,59.06981101]
[1748458317204,29.26302316,170.39,170.32,24.65081101]
[1748458317513,29.26302316,170.39,170.32,23.10981101]
[1748458318836,47.91267202,170.39,170.3,23.10981101]
[1748458319427,134.58838303,170.39,170.38,6.66673333]
[1748458319722,134.58838303,170.39,170.24,10.923]
[1748458319723,0.28432314,170.34,170.24,10.923]
[1748458319927,23.10981101,170.26,170.2,10.923]
[1748458320134,23.10981101,170.25,170.2,24.77281101]
[1748458320304,23.10981101,170.24,170.19,85.10981101]
[1748458320633,9.26,170.28,170.18,31.08923774]
[1748458320634,23.10981101,170.23,170.18,31.08923774]
[1748458320803,5.87475032,170.22,170.19,23.10981101]
[1748458321595,5.87475032,170.22,170.18,33.97942673]
[1748458321596,23.10981101,170.21,170.18,7.97942673]
[1748458322628,23.10981101,170.19,170.18,7.97942673]
[1748458322834,52.37973104,170.19,170.18,7.97942673]
[1748458323020,0.28432314,170.18,170.05,1.5693]
[1748458323202,23.39413415,170.15,170.05,1.5693]
[1748458323399,0.28432314,170.14,170.02,36.22]
[1748458323816,23.10981101,170.11,170.06,23.10981101]
[1748458324023,0.28432314,170.09,170.05,23.10981101]
[1748458324234,0.28432314,170.09,170.0,38.0821]
[1748458324424,15.7218,170.15,170.04,23.10981101]
[1748458324615,23.10981101,170.09,170.04,23.10981101]
[1748458324820,5.87958607,170.08,170.04,23.10981101]
[1748458325023,28.98939708,170.08,170.04,26.0]
[1748458325207,28.98939708,170.08,170.04,49.10981101]
[1748458325411,28.98939708,170.08,170.04,26.0]
[1748458325412,0.28432314,170.07,170.04,26.0]
[1748458325847,0.28432314,170.07,170.04,23.10981101]
[1748458326218,0.28432314,170.07,170.0,1.6421]
[1748458326419,5.87958607,170.08,170.0,1.6421]
[1748458326420,0.28432314,170.04,170.0,0.1]
[1748458326833,5.88131506,170.03,170.0,0.1]
[1748458327030,0.28432314,170.02,170.0,0.1]
[1748458327824,0.28432314,170.07,170.01,23.10981101]
[1748458328155,0.28432314,170.07,170.0,26.1]
[1748458328328,0.14216157,170.07,170.0,26.1]
[1748458328527,0.14216157,170.07,170.03,23.10981101]
[1748458328827,0.14216157,170.06,170.03,23.10981101]
[1748458329133,0.14216157,170.07,170.05,23.10981101]
[1748458329331,0.14216157,170.05,170.0,0.1]
[1748458329534,44.64964886,170.0,169.85,1.6423]
[1748458329722,23.10981101,169.93,169.85,1.6423]
[1748458329944,23.10981101,169.93,169.86,34.61574648]
[1748458329945,34.61574648,169.91,169.86,34.61574648]
[1748458330141,18.64964886,169.96,169.85,1.6423]
[1748458330142,34.90006962,169.92,169.85,1.6423]
[1748458330335,0.28432314,169.92,169.81,15.061938]
[1748458330540,0.28432314,169.88,169.84,34.61574648]
[1748458330769,34.61574648,169.87,169.82,34.61574648]
[1748458330970,5.88685465,169.87,169.83,34.61574648]
[1748458331166,34.61574648,169.85,169.81,5.361938]
[1748458331457,34.75790805,169.82,169.81,5.361938]
[1748458331624,0.14216157,169.82,169.81,5.361938]
[1748458332548,0.28432314,169.86,169.81,5.361938]
[1748458332728,0.28432314,169.86,169.85,34.61574648]
[1748458332933,0.28432314,169.86,169.81,5.361938]
[1748458332934,5.88616163,169.89,169.81,5.361938]
[1748458333137,0.28432314,169.88,169.81,5.361938]
[1748458333334,0.28432314,169.88,169.85,34.61574648]
[1748458333535,34.61574648,169.88,169.83,34.61574648]
[1748458333880,34.61574648,169.91,169.86,34.61574648]
[1748458334073,34.61574648,169.91,169.84,26.0]
[1748458334232,0.14216157,169.87,169.81,5.361938]
[1748458334430,34.61574648,169.86,169.81,31.361938]
[1748458334752,34.90006962,169.82,169.81,5.361938]
[1748458335057,40.78865753,169.82,169.81,5.361938]
[1748458335845,6.17291105,169.82,169.81,5.361938]
[1748458336462,40.78865753,169.82,169.81,5.361938]
[1748458337060,59.43830639,169.82,169.81,5.361938]
[1748458337533,6.17291105,169.82,169.81,5.361938]
[1748458338142,5.88858791,169.82,169.81,5.361938]
[1748458338461,59.43830639,169.82,169.81,5.361938]
[1748458339728,40.64649596,169.82,169.81,5.361938]
[1748458339932,59.43830639,169.82,169.81,5.361938]
[1748458340145,24.82255991,169.82,169.81,5.361938]
[1748458340342,59.43830639,169.82,169.81,5.361938]
[1748458340658,24.82255991,169.82,169.81,5.361938]
[1748458340828,18.933972,169.81,169.65,16.11424922]
[1748458341029,0.14216157,169.73,169.7,34.61574648]
[1748458341256,10.92,169.8,169.72,34.61574648]
[1748458341457,26.0,169.77,169.76,34.61574648]
[1748458341872,26.0,169.81,169.72,18.64964886]
[1748458342044,5.88789448,169.84,169.8,34.61574648]
[1748458342248,34.61574648,169.83,169.72,18.64964886]
[1748458342463,34.90006962,169.82,169.77,34.61574648]
[1748458342665,26.0,169.81,169.8,34.61574648]
[1748458342971,16.80760243,169.85,169.8,33.11574648]
[1748458343284,77.42339926,169.85,169.76,18.64964886]
[1748458343435,0.14216157,169.82,169.75,1.6181]
[1748458343634,34.75790805,169.82,169.77,34.61574648]
[1748458343836,16.80765278,169.85,169.79,34.61574648]
[1748458344035,16.80765278,169.85,169.82,34.61574648]
[1748458344347,31.88723647,169.86,169.83,34.61574648]
[1748458344549,10.92,169.9,169.85,34.61574648]
[1748458344761,34.61574648,169.89,169.85,34.61574648]
[1748458345056,5.88754783,169.85,169.8,34.61574648]
[1748458345237,5.88754783,169.85,169.81,34.61574648]
[1748458345447,5.88754783,169.85,169.82,34.61574648]
[1748458345757,25.63498495,169.9,169.84,34.61574648]
[1748458345758,5.88616163,169.89,169.84,34.61574648]
[1748458345955,5.88616163,169.89,169.81,18.64964886]
[1748458346171,55.21731219,169.89,169.84,34.61574648]
[1748458346330,55.21731219,169.89,169.78,18.64964886]
[1748458346531,0.28432314,169.88,169.78,18.64964886]
[1748458346735,0.14216157,169.85,169.8,34.61574648]
[1748458346935,0.14216157,169.85,169.82,34.61574648]
[1748458347166,0.14216157,169.86,169.84,34.61574648]
[1748458347491,5.88685465,169.87,169.85,34.61574648]
[1748458347640,5.88616163,169.89,169.8,34.61574648]
[1748458347963,5.88616163,169.89,169.81,18.64964886]
[1748458348166,20.60156571,169.89,169.8,26.0]
[1748458348368,0.14216157,169.88,169.85,34.61574648]